bitfinex-derivatives/quotes_ETHF0:USTF0_20240822
["timestamp","ask_amount","ask_price","bid_price","bid_amount"]
[1724357566309,0.38264,2612.9,2612.8,4.75451354]
[1724357566513,0.38264,2612.9,2612.8,3.76236]
[1724357567613,0.38264,2612.9,2612.8,3.3797]
[1724357568507,0.38264,2613.0,2612.8,3.76236]
[1724357568822,0.38264,2612.9,2612.8,3.3797]
[1724357569017,0.38264,2613.0,2612.8,3.76236]
[1724357570923,0.38264,2612.9,2612.8,3.3797]
[1724357571521,4.20984,2612.9,2612.8,2.2475]
[1724357573312,1.34762,2613.1,2612.9,0.38264]
[1724357573512,1.34762,2613.1,2613.0,1.1353]
[1724357576627,1.34762,2613.1,2613.0,1.51793]
[1724357579332,0.965,2613.1,2613.0,1.51793]
[1724357580133,4.1728,2613.1,2613.0,1.51793]
[1724357580626,4.55541,2613.1,2613.0,1.51793]
[1724357581633,4.1728,2613.1,2613.0,1.51793]
[1724357582024,3.2078,2613.1,2613.0,1.51793]
[1724357582229,3.2078,2613.1,2613.0,2.48293]
[1724357583227,3.2078,2613.1,2613.0,3.47508354]
[1724357583828,0.38259,2613.3,2613.2,0.3826]
[1724357584539,3.2078,2613.4,2613.3,0.38259]
[1724357584831,0.38255,2613.6,2613.3,0.38259]
[1724357584832,0.38254,2613.6,2613.5,0.38256]
[1724357586228,0.38254,2613.6,2613.5,1.37471354]
[1724357586427,0.38827163,2613.7,2613.5,0.99215354]
[1724357586630,0.00574163,2613.7,2613.6,1.34754]
[1724357586931,0.00574163,2613.7,2613.6,0.38254]
[1724357587134,0.00574163,2613.7,2613.6,1.37469354]
[1724357587327,0.00574163,2613.7,2613.6,2.33969354]
[1724357587527,0.00574163,2613.7,2613.6,4.25353803]
[1724357587740,0.00574163,2613.7,2613.6,3.26138449]
[1724357588234,0.00574163,2613.7,2613.6,4.75719986]
[1724357588733,0.00574163,2613.7,2613.6,3.26138449]
[1724357589530,0.00574163,2613.7,2613.6,4.25614204]
[1724357590429,0.00574163,2613.7,2613.6,4.25612151]
[1724357590737,0.00574163,2613.7,2613.6,2.34229755]
[1724357591532,0.00574163,2613.7,2613.6,6.16869755]
[1724357592125,0.00574163,2613.7,2613.6,7.08774642]
[1724357592541,0.00574163,2613.7,2613.6,8.08201969]
[1724357593035,0.00574163,2613.7,2613.6,6.16821327]
[1724357593339,0.00574163,2613.7,2613.6,8.0820543]
[1724357593533,0.00574163,2613.7,2613.6,6.16821327]
[1724357596439,0.00574163,2613.7,2613.6,5.17394]
[1724357605732,0.00574163,2613.7,2613.6,4.20894]
[1724357605939,0.00574163,2613.7,2613.6,1.34754]
[1724357606439,0.00574163,2613.7,2613.6,5.17394]
[1724357607842,0.00574163,2613.7,2613.6,1.34754]
[1724357608042,0.00574163,2613.7,2613.6,5.17394]
[1724357609146,0.00574163,2613.7,2613.6,1.34754]
[1724357609345,0.00574163,2613.7,2613.6,5.17394]
[1724357612249,0.00574163,2613.7,2613.6,4.20894]
[1724357612649,0.00574163,2613.7,2613.6,1.34754]
[1724357616346,0.38827163,2613.7,2613.6,1.34754]
[1724357616658,0.00574163,2613.7,2613.6,1.34754]
[1724357620164,0.38827163,2613.7,2613.6,1.34754]
[1724357620756,0.38257,2613.4,2613.3,1.95927327]
[1724357620952,0.38259,2613.3,2613.2,3.1679]
[1724357621157,0.38259,2613.3,2613.2,4.2775]
[1724357622055,0.38259,2613.3,2613.2,4.6601]
[1724357622747,1.1888,2613.5,2613.3,0.38258]
[1724357622957,1.57136,2613.5,2613.4,1.34757]
[1724357623156,0.38256,2613.5,2613.4,1.34757]
[1724357623560,0.38256,2613.5,2613.4,0.965]
[1724357624763,0.38256,2613.5,2613.4,1.34757]
[1724357627166,0.00574163,2613.7,2613.6,0.38254]
[1724357627369,0.00574163,2613.7,2613.6,1.34754]
[1724357627753,0.00574163,2613.7,2613.6,2.34181327]
[1724357628561,0.00574163,2613.7,2613.6,4.25566009]
[1724357628770,0.00574163,2613.7,2613.6,7.61816009]
[1724357629453,0.00574163,2613.7,2613.6,8.11970219]
[1724357632664,0.00574163,2613.7,2613.6,8.11971684]
[1724357634065,0.00574163,2613.7,2613.6,6.62390147]
[1724357635171,0.38827163,2613.7,2613.6,5.65890147]
[1724357635473,0.38827163,2613.7,2613.6,4.74117407]
[1724357636574,0.00574163,2613.7,2613.6,5.70617407]
[1724357636869,0.00574163,2613.7,2613.6,6.62387325]
[1724357637372,0.00574163,2613.7,2613.6,7.6204002]
[1724357641167,0.00574163,2613.7,2613.6,7.62042285]
[1724357642672,0.00574163,2613.7,2613.6,6.62386884]
[1724357646073,0.00574163,2613.7,2613.6,6.62382842]
[1724357649779,0.00574163,2613.7,2613.6,5.70671338]
[1724357653378,0.00574163,2613.7,2613.6,7.62050378]
[1724357653784,0.00574163,2613.7,2613.6,5.70671816]
[1724357656978,0.38827163,2613.7,2613.6,5.70671816]
[1724357657779,0.38827163,2613.7,2613.6,6.6238753]
[1724357660584,0.38827163,2613.7,2613.6,6.62387766]
[1724357660773,4.21467163,2613.7,2613.6,5.67106149]
[1724357660980,4.21467163,2613.7,2613.6,3.40916149]
[1724357660981,16.46401163,2613.7,2613.6,3.40916149]
[1724357661287,1.3389,2613.6,2613.5,0.99704356]
[1724357661476,1.33896,2613.5,2613.4,0.99704356]
[1724357661678,1.33896,2613.5,2613.4,2.91117984]
[1724357661679,5.16536,2613.5,2613.4,2.91117984]
[1724357662384,5.16536,2613.5,2613.4,0.99704356]
[1724357663786,4.20896,2613.5,2613.4,0.99704356]
[1724357664083,0.38257,2613.4,2613.3,0.99704356]
[1724357664279,0.38257,2613.4,2613.2,0.99704356]
[1724357664280,0.38259,2613.3,2613.2,0.99704356]
[1724357664482,0.3826,2613.2,2613.0,1.87795383]
[1724357664780,0.3826,2613.2,2613.0,2.3443752]
[1724357666878,0.3826,2613.2,2613.0,1.9617452]
[1724357667392,0.3826,2613.2,2613.0,0.965]
[1724357667793,0.3826,2613.2,2612.9,4.2170452]
[1724357667794,0.38263,2613.0,2612.9,4.2170452]
[1724357668091,1.34763,2613.0,2612.9,0.9967452]
[1724357668275,0.38266,2612.8,2612.6,1.3794352]
[1724357668480,2.43897,2612.7,2612.5,3.7023452]
[1724357668681,0.38269,2612.6,2612.5,1.1339]
[1724357668998,2.43898,2612.7,2612.5,1.1339]
[1724357669384,2.43898,2612.7,2612.5,1.5166]
[1724357669587,0.38269,2612.6,2612.4,0.38271]
[1724357669784,0.965,2612.5,2612.4,0.38272]
[1724357670282,3.828,2612.5,2612.4,0.38272]
[1724357670485,2.43898,2612.7,2612.5,0.3827]
[1724357670794,1.47398,2612.7,2612.5,0.3827]
[1724357671093,5.30198,2612.7,2612.5,0.3827]
[1724357675095,1.47398,2612.7,2612.5,0.3827]
[1724357676102,0.38269,2612.6,2612.4,1.34771]
[1724357676290,0.965,2612.5,2612.3,0.965]
[1724357676484,0.38272,2612.4,2612.2,1.52238163]
[1724357676688,4.55551,2612.5,2612.3,0.38273]
[1724357676900,4.55551,2612.5,2612.3,1.34773]
[1724357677097,3.59051,2612.5,2612.3,1.34773]
[1724357678499,3.2078,2612.5,2612.3,1.34773]
[1724357678894,3.2078,2612.5,2612.3,1.34772]
[1724357679401,3.59051,2612.5,2612.3,1.34772]
[1724357683098,3.2078,2612.5,2612.4,0.38272]
[1724357683299,0.3827,2612.6,2612.4,0.38272]
[1724357683505,7.4185,2612.6,2612.4,0.38272]
[1724357684003,4.2107,2612.6,2612.4,0.38272]
[1724357684204,7.4185,2612.6,2612.4,0.38272]
[1724357684412,3.5905,2612.6,2612.4,0.38272]
[1724357685318,3.5905,2612.6,2612.5,1.1399]
[1724357685709,7.4185,2612.6,2612.5,1.1399]
[1724357689414,7.4185,2612.6,2612.5,2.3316]
[1724357693308,3.2078,2612.6,2612.5,1.5226]
[1724357700429,3.59049,2612.6,2612.5,1.5226]
[1724357700928,4.55549,2612.6,2612.5,1.5226]
[1724357701625,1.34769,2612.6,2612.5,1.5226]
[1724357701825,0.38267,2612.8,2612.6,0.38269]
[1724357702624,1.34765,2612.9,2612.8,0.38266]
[1724357702817,0.38266,2612.8,2612.7,0.38266]
[1724357703426,0.38267,2612.7,2612.6,1.0893]
[1724357703727,1.49627,2612.7,2612.6,1.0893]
[1724357706535,1.1136,2612.7,2612.4,2.3444552]
[1724357706833,0.38272,2612.4,2612.3,4.3677452]
[1724357707037,0.38272,2612.4,2612.3,3.2538452]
[1724357707234,0.38272,2612.4,2612.3,2.2571]
[1724357707537,0.38272,2612.4,2612.3,3.2538452]
[1724357708530,0.38271,2612.5,2612.3,5.55135386]
[1724357708731,0.38269,2612.6,2612.4,1.3794552]
[1724357709330,0.38269,2612.6,2612.5,0.9967452]
[1724357709934,0.38269,2612.6,2612.5,2.0788452]
[1724357710535,0.965,2612.6,2612.5,0.9967452]
[1724357710740,1.34769,2612.6,2612.5,0.9967452]
[1724357712942,1.34769,2612.6,2612.5,1.3794452]
[1724357713442,1.34769,2612.6,2612.5,3.79275253]
[1724357714326,1.34769,2612.6,2612.5,3.41005253]
[1724357714528,1.34769,2612.6,2612.5,3.79275253]
[1724357715130,1.34769,2612.6,2612.5,3.41005253]
[1724357715439,5.17569,2612.6,2612.5,0.99821811]
[1724357715940,6.29169,2612.6,2612.5,0.99821811]
[1724357716639,5.17569,2612.6,2612.5,2.91296911]
[1724357717027,0.965,2612.7,2612.5,3.41007483]
[1724357717234,1.34768,2612.7,2612.6,0.38269]
[1724357717435,4.76587,2612.8,2612.7,0.38267]
[1724357717634,5.73087,2612.8,2612.7,1.50877]
[1724357717836,3.2078,2612.8,2612.7,3.80767]
[1724357718032,3.2078,2612.8,2612.7,4.80575977]
[1724357718338,3.2078,2612.8,2612.7,11.51247028]
[1724357718537,3.2078,2612.8,2612.7,10.51438051]
[1724357719045,3.2078,2612.8,2612.7,12.00970434]
[1724357719242,1.1754,2613.3,2613.0,0.38262]
[1724357719445,0.965,2613.2,2613.1,2.3082]
[1724357719634,1.3476,2613.2,2613.1,3.425]
[1724357720141,4.5554,2613.2,2613.1,3.425]
[1724357721732,4.5554,2613.2,2612.9,1.38009262]
[1724357721733,4.5554,2613.2,2612.9,0.99746262]
[1724357721932,4.5554,2613.2,2610.9,1.34034977]
[1724357721933,3.2078,2612.5,2611.3,1.49777712]
[1724357722141,0.38289,2611.2,2611.1,1.49777712]
[1724357722341,2.97030603,2611.3,2610.9,0.965]
[1724357722528,2.97030603,2611.3,2610.6,0.18881906]
[1724357722529,4.71161529,2611.0,2610.8,2.12389576]
[1724357722839,1.50385335,2611.1,2610.9,1.38183576]
[1724357723139,0.00415571,2611.1,2611.0,1.96389576]
[1724357723337,0.00415571,2611.1,2611.0,4.93201423]
[1724357723636,0.00415571,2611.1,2611.0,3.93311847]
[1724357723839,3.21195571,2611.1,2611.0,3.93311847]
[1724357724538,3.21195571,2611.1,2611.0,43.76811847]
[1724357727037,3.21195571,2611.1,2611.0,45.97941847]
[1724357728833,0.00574163,2611.3,2611.0,50.97941847]
[1724357729043,4.71165335,2611.8,2611.1,7.0374]
[1724357729242,1.50385335,2612.0,2611.2,1.38177576]
[1724357729442,1.50385335,2612.0,2611.2,0.99889576]
[1724357729638,3.2078,2611.9,2611.1,4.20669576]
[1724357729833,5.09444335,2611.9,2611.1,4.20669576]
[1724357730036,0.00574163,2611.8,2611.1,4.20669576]
[1724357731845,0.00574163,2611.8,2611.1,3.59071]
[1724357733640,0.00574163,2611.8,2611.2,0.38289]
[1724357734146,0.00574163,2611.8,2611.3,1.1655]
[1724357735936,0.00574163,2611.8,2611.3,1.54838]
[1724357736949,0.00574163,2611.8,2611.3,1.1655]
[1724357736950,0.38855163,2611.8,2611.3,1.1655]
[1724357737338,0.00574163,2611.8,2611.3,1.1655]
[1724357737646,0.38855163,2611.8,2611.3,1.1655]
[1724357738750,0.38855163,2611.8,2611.3,1.54838]
[1724357738751,0.00574163,2611.8,2611.3,1.54838]
[1724357739343,0.38855163,2611.8,2611.3,1.1655]
[1724357739741,3.2078,2611.5,2611.3,1.1655]
[1724357739943,3.2078,2611.5,2611.0,3.3882]
[1724357740150,3.59069,2611.2,2611.0,3.3882]
[1724357740439,3.2078,2611.2,2611.0,2.2924]
[1724357740946,3.5907,2611.2,2611.0,2.2924]
[1724357741444,3.2078,2611.2,2611.0,2.2924]
[1724357741849,3.8296,2611.1,2610.9,0.00453753]
[1724357742047,0.38292,2611.1,2610.9,0.00453753]
[1724357742347,0.38292,2611.0,2610.9,0.00453753]
[1724357742739,4.21332,2611.0,2610.9,0.00453753]
[1724357742941,9.21332,2611.0,2610.9,0.00453753]
[1724357743143,11.23543,2611.0,2610.9,0.00453753]
[1724357745848,12.73928335,2611.0,2610.9,0.00453753]
[1724357746251,11.23543,2611.0,2610.9,0.00453753]
[1724357747550,0.38292,2611.1,2610.9,0.00453753]
[1724357747748,3.2078,2611.2,2610.9,0.00453753]
[1724357747943,0.38291,2611.1,2610.9,0.00453753]
[1724357748156,0.38292,2611.0,2610.9,0.00453753]
[1724357748950,4.21332,2611.0,2610.9,0.00453753]
[1724357750052,3.2078,2611.2,2610.9,0.00453753]
[1724357750249,3.2078,2611.2,2611.0,0.38291]
[1724357751248,3.2078,2611.2,2610.9,2.76196753]
[1724357752347,3.2078,2611.2,2610.9,2.37903753]
[1724357753160,3.2078,2611.2,2610.9,2.76196753]
[1724357753851,3.2078,2611.2,2610.9,2.37903753]
[1724357754659,3.2078,2611.2,2610.9,2.76196753]
[1724357757058,3.2078,2611.2,2610.9,2.37903753]
[1724357757260,3.2078,2611.2,2610.9,2.76196753]
[1724357757852,3.2078,2611.2,2610.9,2.37903753]
[1724357758660,3.2078,2611.2,2610.9,2.76196753]
[1724357759555,3.2078,2611.2,2611.0,0.38292]
[1724357760564,3.2078,2611.2,2610.9,2.76196753]
[1724357761851,1.50385335,2611.7,2611.1,2.317]
[1724357762053,0.00574163,2611.8,2611.7,0.38282]
[1724357762253,0.00574163,2611.8,2611.7,7.1774]
[1724357762862,0.00574163,2611.8,2611.7,3.3486]
[1724357768157,0.00574163,2611.8,2611.7,3.73142]
[1724357768456,0.00574163,2611.8,2611.7,3.3486]
[1724357770862,0.00574163,2611.8,2611.7,3.73142]
[1724357771063,0.00574163,2611.8,2611.7,7.56022]
[1724357773257,0.00574163,2611.8,2611.7,7.1774]
[1724357773454,0.00574163,2611.8,2611.7,7.56022]
[1724357774460,0.00574163,2611.8,2611.7,7.1774]
[1724357774663,0.00574163,2611.8,2611.7,3.3486]
[1724357774863,4.21734163,2611.8,2611.7,3.3486]
[1724357775165,7.42514163,2611.8,2611.7,3.3486]
[1724357775571,7.04234163,2611.8,2611.3,8.5708]
[1724357775871,0.38284,2611.6,2611.4,1.1413]
[1724357776769,0.3829,2611.2,2610.9,0.00453753]
[1724357777066,0.38291,2611.1,2611.0,1.1413]
[1724357777368,0.38292,2611.0,2610.9,0.00453753]
[1724357777562,5.9077,2611.2,2610.9,0.00453753]
[1724357777765,5.5248,2611.2,2610.9,0.00453753]
[1724357778169,5.9077,2611.2,2610.9,0.00453753]
[1724357783880,3.5907,2611.2,2610.9,0.00453753]
[1724357787982,3.2078,2611.2,2610.9,0.00453753]
[1724357788281,3.5907,2611.2,2610.9,0.00453753]
[1724357789073,3.5907,2611.2,2610.9,1.08753753]
[1724357789968,3.2078,2611.2,2610.9,1.08753753]
[1724357790167,1.50385335,2611.3,2610.9,1.08753753]
[1724357790168,1.50385335,2611.3,2611.1,0.38291]
[1724357790365,1.50385335,2611.3,2611.2,1.1152]
[1724357790578,5.09453335,2611.3,2610.9,0.38746753]
[1724357790775,6.15993335,2611.3,2610.9,0.38746753]
[1724357791374,4.65608,2611.3,2610.9,0.38746753]
[1724357792583,4.65608,2611.3,2611.0,0.38292]
[1724357792882,4.2732,2611.3,2611.0,0.38292]
[1724357793092,3.2078,2611.3,2611.0,0.38292]
[1724357793478,3.2078,2611.3,2611.1,0.38291]
[1724357793778,3.2078,2611.3,2611.2,1.46599]
[1724357794081,1.46805,2611.5,2611.2,1.0831]
[1724357794274,0.38284,2611.6,2611.3,1.50347]
[1724357794476,0.38284,2611.6,2611.3,2.2259]
[1724357795281,0.38284,2611.6,2611.3,2.60877]
[1724357795480,0.38285,2611.5,2611.3,2.60877]
[1724357796082,0.38284,2611.6,2611.3,2.60877]
[1724357796382,0.38284,2611.6,2611.4,0.38286]
[1724357796777,0.38284,2611.6,2611.3,2.60877]
[1724357796979,0.38285,2611.5,2611.3,2.60877]
[1724357800084,0.38285,2611.5,2611.3,2.2259]
[1724357801595,0.38285,2611.5,2611.3,2.60877]
[1724357802988,0.38285,2611.5,2611.3,2.2259]
[1724357803684,3.2078,2611.6,2611.3,2.2259]
[1724357803884,1.50692075,2611.8,2611.7,0.38282]
[1724357804092,0.00574163,2611.8,2611.7,0.38282]
[1724357804587,0.00574163,2611.8,2611.7,4.21162]
[1724357805886,0.00318159,2611.9,2611.8,0.3828]
[1724357806093,0.00318159,2611.9,2611.8,1.5025]
[1724357806480,0.00318159,2611.9,2611.8,5.3313]
[1724357811386,0.00318159,2611.9,2611.8,4.9485]
[1724357813486,0.00318159,2611.9,2611.8,5.3313]
[1724357814988,0.38597159,2611.9,2611.8,1.1197]
[1724357815193,1.49237159,2611.9,2611.8,1.1197]
[1724357815490,0.38282,2611.7,2611.6,1.092]
[1724357815695,0.38283,2611.7,2611.5,1.1583]
[1724357815991,0.38283,2611.7,2611.5,2.2824]
[1724357817184,0.38281,2611.8,2611.5,2.2824]
[1724357817789,0.38282,2611.7,2611.5,2.2824]
[1724357817989,2.61042047,2611.9,2611.5,1.1583]
[1724357818491,0.38283,2611.7,2611.5,1.1583]
[1724357820097,0.38283,2611.6,2611.5,1.1583]
[1724357820490,0.38283,2611.7,2611.5,1.1583]
[1724357820996,1.88364888,2611.8,2611.5,1.1583]
[1724357821190,0.38281,2611.8,2611.5,1.1583]
[1724357821592,1.88364888,2611.8,2611.5,1.1583]
[1724357821793,0.38282,2611.7,2611.5,1.1583]
[1724357823300,1.88364888,2611.8,2611.5,1.1583]
[1724357823502,1.88364888,2611.8,2611.5,1.54115]
[1724357823690,1.88364888,2611.8,2611.5,1.1583]
[1724357825293,0.38282,2611.7,2611.5,1.1583]
[1724357826293,7.0366,2611.6,2611.3,2.2916]
[1724357826497,0.38287,2611.4,2611.1,1.524]
[1724357826897,1.0875,2611.5,2611.2,0.38289]
[1724357826898,1.47036,2611.5,2611.2,0.38289]
[1724357827804,1.0875,2611.5,2611.3,0.38288]
[1724357828103,5.09147888,2611.6,2611.3,0.38288]
[1724357828298,5.09147888,2611.6,2611.1,1.1411]
[1724357828299,1.88368888,2611.5,2611.4,1.1524]
[1724357828698,1.50083888,2611.5,2611.4,1.1524]
[1724357828897,1.50083888,2611.6,2611.4,1.53526]
[1724357829105,1.50083888,2611.7,2611.5,1.52925]
[1724357829299,1.50325126,2611.7,2611.6,1.1328]
[1724357829604,0.38282,2611.7,2611.6,1.1328]
[1724357830908,4.21162,2611.7,2611.6,1.1328]
[1724357831204,6.21273851,2611.7,2611.6,1.1328]
[1724357832601,4.21162,2611.7,2611.6,1.1328]
[1724357833200,4.21162,2611.7,2611.5,1.1464]
[1724357833201,0.38283,2611.6,2611.5,1.1464]
[1724357833411,2.38394851,2611.7,2611.5,1.1464]
[1724357833602,2.38394851,2611.7,2611.5,1.52925]
[1724357833803,0.38283,2611.6,2611.5,1.1464]
[1724357834508,2.00111851,2611.7,2611.5,1.1464]
[1724357834805,0.38283,2611.6,2611.5,1.1464]
[1724357836000,2.00111851,2611.7,2611.5,1.1464]
[1724357836200,0.38283,2611.6,2611.5,1.1464]
[1724357836506,2.38394851,2611.7,2611.5,1.1464]
[1724357836909,2.38394851,2611.7,2611.4,1.1524]
[1724357836910,2.00111851,2611.7,2611.4,1.1524]
[1724357837201,2.00111851,2611.7,2611.2,2.08166736]
[1724357837202,0.38287,2611.4,2611.2,2.08166736]
[1724357837409,1.88800905,2611.3,2611.2,2.08166736]
[1724357837598,1.88800905,2611.3,2611.2,1.0866]
[1724357838809,2.98439905,2611.4,2611.2,2.08166736]
[1724357839001,1.47927,2611.4,2611.2,1.0866]
[1724357839304,1.50505731,2611.3,2611.2,1.46949]
[1724357840096,1.50505731,2611.4,2611.3,0.38288]
[1724357840507,2.00111851,2611.7,2611.4,0.38286]
[1724357840508,1.50505731,2611.5,2611.4,0.38286]
[1724357841203,2.00111851,2611.7,2611.4,0.38286]
[1724357841603,2.00111851,2611.7,2611.2,2.08166736]
[1724357841604,2.00111851,2611.7,2611.5,1.51424]
[1724357841798,2.00111851,2611.7,2611.6,1.1557]
[1724357844003,2.38393851,2611.7,2611.6,1.1557]
[1724357844710,2.00111851,2611.7,2611.6,1.1557]
[1724357846103,2.38393851,2611.7,2611.6,1.1557]
[1724357846610,3.34893851,2611.7,2611.6,1.1557]
[1724357849805,6.55673851,2611.7,2611.6,1.1557]
[1724357850205,3.34893851,2611.7,2611.6,1.1557]
[1724357850413,6.55673851,2611.7,2611.6,1.1557]
[1724357851010,4.55562,2611.7,2611.6,1.1557]
[1724357851208,6.56248605,2611.7,2611.6,1.1557]
[1724357851415,4.55562,2611.7,2611.6,1.1557]
[1724357852315,4.55562,2611.7,2611.2,2.08166736]
[1724357852316,0.38288,2611.4,2611.2,2.08166736]
[1724357852615,1.34788,2611.4,2611.3,2.2905]
[1724357855209,0.965,2611.4,2611.3,2.2905]
[1724357855513,0.38285,2611.5,2611.3,2.2905]
[1724357855817,0.965,2611.4,2611.3,2.2905]
[1724357856812,0.965,2611.4,2611.3,2.67338]
[1724357857517,2.00695069,2611.5,2611.4,0.38286]
[1724357857718,2.97195069,2611.6,2611.4,0.38286]
[1724357858024,2.00695069,2611.6,2611.3,4.25056736]
[1724357858213,2.97195069,2611.6,2611.4,0.38285]
[1724357858414,2.00695069,2611.5,2611.4,0.38285]
[1724357858922,2.00695069,2611.6,2611.5,0.38285]
[1724357859121,2.97195069,2611.6,2611.5,0.38285]
[1724357859323,2.97195069,2611.6,2611.4,0.38285]
[1724357859528,0.965,2611.5,2611.3,3.66843736]
[1724357860423,2.97195069,2611.5,2611.4,0.99506736]
[1724357860634,2.97195069,2611.5,2611.3,3.66843736]
[1724357861327,2.00695069,2611.4,2611.3,3.66843736]
[1724357862922,2.00695069,2611.4,2611.3,2.67337]
[1724357863124,2.00695069,2611.4,2611.3,3.67238881]
[1724357863326,2.00695069,2611.4,2611.3,2.67337]
[1724357864023,2.00695069,2611.4,2611.3,2.2905]
[1724357864223,2.00695069,2611.4,2611.3,3.2896111]
[1724357864224,2.97195069,2611.4,2611.3,3.2896111]
[1724357864524,0.38291,2611.1,2611.0,0.9991111]
[1724357864720,0.38292,2611.0,2610.9,0.00453753]
[1724357865021,0.965,2611.0,2610.9,0.00453753]
[1724357865220,0.965,2611.0,2610.9,1.00364863]
[1724357865418,2.97426665,2611.0,2610.9,0.00453753]
[1724357866313,2.00926665,2611.0,2610.9,0.00453753]
[1724357866513,2.97426665,2611.0,2610.9,0.00453753]
[1724357869927,4.13916665,2611.0,2610.9,0.00453753]
[1724357871220,2.1299,2611.0,2610.9,0.00453753]
[1724357874931,0.965,2611.0,2610.9,0.00453753]
[1724357876734,1.34792,2611.0,2610.9,0.00453753]
[1724357877931,0.965,2611.0,2610.9,0.00453753]
[1724357881942,2.4691073,2611.0,2610.9,0.00453753]
[1724357882136,0.965,2611.0,2610.9,0.00453753]
[1724357883541,2.4690283,2611.0,2610.9,0.00453753]
[1724357886531,1.5040283,2611.0,2610.9,4.79993753]
[1724357886733,1.5040283,2611.3,2611.2,0.38289]
[1724357887031,1.5040283,2611.4,2611.1,0.965]
[1724357887237,1.5040283,2611.4,2611.2,1.69638]
[1724357887436,2.4690283,2611.4,2611.2,2.6855]
[1724357887936,1.5040283,2611.3,2611.2,2.6855]
[1724357888531,2.4690283,2611.3,2611.2,2.6855]
[1724357888732,0.965,2611.3,2611.2,2.6855]
[1724357888933,2.85176471,2611.3,2611.2,2.6855]
[1724357889440,1.34788,2611.3,2611.2,2.6855]
[1724357889634,2.85182036,2611.3,2611.2,2.6855]
[1724357890326,1.34788,2611.3,2611.2,2.6855]
[1724357890530,0.965,2611.3,2611.2,2.6855]
[1724357890731,2.46901279,2611.3,2611.2,2.6855]
[1724357891441,1.34788,2611.3,2611.2,2.6855]
[1724357891644,0.965,2611.3,2611.2,2.6855]
[1724357892441,1.34788,2611.3,2611.2,2.6855]
[1724357894935,0.965,2611.3,2611.2,2.6855]
[1724357895944,2.46936004,2611.3,2611.2,2.6855]
[1724357896746,1.50436004,2611.3,2611.2,2.6855]
[1724357897246,2.46936004,2611.3,2611.2,2.6855]
[1724357897545,0.965,2611.3,2611.2,2.6855]
[1724357898154,5.21706665,2611.5,2611.2,3.06838]
[1724357898343,2.46952952,2611.3,2611.2,3.06838]
[1724357899038,2.46952952,2611.3,2611.2,2.6855]
[1724357899536,2.46952952,2611.3,2611.2,4.0226]
[1724357901053,2.46952952,2611.3,2611.2,4.40549]
[1724357901950,0.965,2611.3,2611.2,4.40549]
[1724357902141,0.965,2611.3,2611.2,4.0226]
[1724357905543,1.34788,2611.3,2611.2,4.0226]
[1724357905741,0.965,2611.3,2611.2,4.0226]
[1724357915353,1.34788,2611.3,2611.2,4.0226]
[1724357916557,0.965,2611.3,2611.2,4.0226]
[1724357918550,2.97426665,2611.3,2611.2,4.0226]
[1724357918749,0.965,2611.3,2611.2,4.0226]
[1724357919441,2.97426665,2611.3,2611.2,4.0226]
[1724357919845,6.80386665,2611.3,2611.0,0.9991111]
[1724357920050,0.38291,2611.1,2611.0,1.356]
[1724357920550,1.72131,2611.1,2611.0,1.356]
[1724357920857,1.3384,2611.1,2611.0,1.356]
[1724357921255,1.3384,2611.1,2611.0,1.73892]
[1724357921449,2.97426665,2611.2,2611.0,1.73892]
[1724357921653,1.72869,2611.3,2611.0,2.7380311]
[1724357921654,2.97426665,2611.3,2611.0,2.7380311]
[1724357921959,2.97426665,2611.3,2611.1,0.3829]
[1724357922159,2.97426665,2611.3,2611.1,1.3820111]
[1724357923053,2.97426665,2611.3,2611.1,0.3829]
[1724357923355,2.97426665,2611.3,2611.1,1.3820111]
[1724357924346,2.97426665,2611.3,2611.2,0.38289]
[1724357924347,2.00926665,2611.3,2611.2,0.38289]
[1724357924548,1.50611094,2611.4,2611.3,1.34008]
[1724357924756,2.00926665,2611.7,2611.6,0.38283]
[1724357925063,2.01244824,2611.9,2611.8,0.3828]
[1724357925355,0.00318159,2611.9,2611.8,1.3478]
[1724357925551,0.00318159,2611.9,2611.8,0.3828]
[1724357925752,0.00318159,2611.9,2611.8,1.6486]
[1724357926851,0.96818159,2611.9,2611.8,1.2658]
[1724357927758,0.00318159,2611.9,2611.8,1.2658]
[1724357928066,0.96818159,2611.9,2611.8,1.2658]
[1724357930256,2.47221582,2611.9,2611.8,1.2658]
[1724357930455,0.96818159,2611.9,2611.8,1.2658]
[1724357931471,2.47219505,2611.9,2611.8,1.2658]
[1724357935369,0.38281,2611.8,2611.6,3.2078]
[1724357935565,0.965,2611.7,2611.6,3.2078]
[1724357937275,2.46845319,2611.8,2611.6,3.59063]
[1724357937471,2.46845319,2611.8,2611.6,3.59062]
[1724357937472,0.965,2611.8,2611.6,3.59062]
[1724357938271,0.965,2611.8,2611.7,0.38282]
[1724357941781,0.96818159,2611.9,2611.8,0.3828]
[1724357942277,2.47163478,2611.9,2611.8,0.3828]
[1724357942483,0.96818159,2611.9,2611.8,0.3828]
[1724357943082,0.00318159,2611.9,2611.8,0.3828]
[1724357943981,0.00318159,2611.9,2611.8,5.1766]
[1724357944283,0.00318159,2611.9,2611.8,6.13362]
[1724357945780,0.00318159,2611.9,2611.8,5.1766]
[1724357947785,0.00318159,2611.9,2611.8,0.3828]
[1724357948479,0.00318159,2611.9,2611.8,1.3478]
[1724357948786,0.00318159,2611.9,2611.8,5.1766]
[1724357950877,0.00318159,2611.9,2611.8,8.3844]
[1724357952481,0.00318159,2611.9,2611.8,9.6894]
[1724357958085,0.00318159,2611.9,2611.8,5.8606]
[1724357959596,0.00318159,2611.9,2611.8,2.6528]
[1724357959797,0.00318159,2611.9,2611.8,5.8606]
[1724357961396,0.00318159,2611.9,2611.8,4.5128]
[1724357962204,1.26148159,2611.9,2611.8,4.5128]
[1724357962903,1.26148159,2611.9,2611.8,4.8956]
[1724357968206,1.26148159,2611.9,2611.8,5.89358572]
[1724357968408,1.26148159,2611.9,2611.8,2.68578572]
[1724357969205,2.76493478,2611.9,2611.8,2.68578572]
[1724357970207,2.76493478,2611.9,2611.8,1.6878]